Cogmind - Beta 16 @@@ ROGUE MODE // 2025.10.26 @ 09:11:13 Player: Moodge Result: Destroyed by Y-45 Defender with Heavy Assault Rifle Performance ------------- Evolutions (1) 500 Regions Visited (2) 400 Robots Destroyed (18) 90 Value Destroyed (402) 402 Prototype IDs (4) 80 Alien Tech Used (0) 0 Bonus (0) 0 TOTAL SCORE: 1472 Bonus ------- None Cogmind --------- Core Integrity 0/400 Matter 275/300 Energy 65/125 System Corruption 0% Temperature Warm (157) Movement Hovering (480) Ox7 Location -9/Materials Parts ------- > --- POWER (1) -------- Light Ion Engine > --- PROPULSION (4) --- Improved Hover Unit > --- UTILITY (2) ------ High-capacity Storage Unit Terrain Scanner > --- WEAPON (2) ------- Advanced Beam Cannon Advanced Beam Cannon > --- INVENTORY (20) --- Datajack Peak State ------------ > --- POWER ------------ Improved Ion Engine > --- PROPULSION ------- Improved Hover Unit > --- UTILITY ---------- Small Storage Unit Terrain Scan Processor > --- WEAPON ----------- Advanced Beam Cannon Advanced Beam Cannon > --- INVENTORY -------- Advanced Beam Cannon Advanced Beam Cannon Advanced Beam Cannon Datajack [Rating: 14] Favorites ----------- Power Ion Engine Engine Ion Engine Power Core Light Nuclear Core Propulsion Aluminum Leg Leg Aluminum Leg Hover Unit Improved Hover Unit Flight Unit Flight Unit Utility High-capacity Storage Unit Device ECM Suite Storage High-capacity Storage Unit Processor Terrain Scan Processor Weapon Advanced Beam Cannon Energy Gun Small Laser Energy Cannon Advanced Beam Cannon Ballistic Gun Assault Rifle Slashing Weapon Mining Claw Special Melee Weapon Datajack Build | -11 -10 -9 ------- Run | Yrd Mat Mat Slots Evolved 2 | . . 2 Power . | . . . Propulsion 2 | . . 2 Utility . | . . . Weapon . | . . . Parts Attached 35 | 5 3 27 Power 6 | 1 1 4 Engine 5 | 1 . 4 Core 1 | . 1 . Reactor . | . . . Propulsion 14 | 2 . 12 Treads . | . . . Leg 4 | 2 . 2 Wheel . | . . . Hover 4 | . . 4 Flight 6 | . . 6 Utility 7 | 1 2 4 Device 2 | . 1 1 Storage 4 | 1 1 2 Processor 1 | . . 1 Hackware . | . . . Protection . | . . . Artifact . | . . . Weapon 8 | 1 . 7 Energy Gun 1 | . . 1 Energy Cannon 4 | . . 4 Ballistic Gun 1 | 1 . . Ballistic Cannon . | . . . Launcher . | . . . Special Weapon . | . . . Impact Weapon . | . . . Slashing Weapon 1 | . . 1 Piercing Weapon . | . . . Special Melee Weapon 1 | . . 1 Unidentified Prototypes . | . . . Parts Lost 22 | . 3 19 Power 3 | . 2 1 Propulsion 13 | . 1 12 Utility 1 | . . 1 Weapon 5 | . . 5 Highest Loss Streak 13 | . 2 13 To Critical Strikes 1 | . . 1 Average Backups 6 | 2 7 5 Power . | 1 1 . Propulsion 1 | . 2 1 Utility . | . . . Weapon 2 | 1 2 1 Tool/Special . | . . . Unused Backups 8 | . . 8 Power . | . . . Propulsion . | . . . Utility 1 | . . 1 Weapon 4 | . . 4 Tool/Special 3 | . . 3 Average Slot Usage (%) 75 | . 80 70 Engine 9 | . 8 9 Core 1 | . 3 . Leg 17 | . 26 7 Hover 1 | . . 2 Flight 5 | . . 10 Device 10 | . 12 9 Storage 12 | . 14 10 Energy Cannon 7 | . . 14 Ballistic Gun 7 | . 14 . Peak Build Rating 14 | 5 9 14 Average Rating 8 | 3 6 10 On Entrance 3 | . 5 5 Avg Prop Armor Cover (%) . | . . . Naked Turns . | . . . Heaviest Build 56 | 12 49 56 Greatest Support 21 | 20 20 21 Greatest Overweight (x) 18 | . 4 18 Average Overweight (x) . | . . 1 Largest Inventory Capacity 20 | 8 20 20 Average Capacity 14 | 7 14 15 Most Carried 16 | 5 16 16 Average Carried 6 | 2 7 4 Final Capacity 20 | 8 20 20 Final Carried 16 | 3 16 1 Class Distribution -------------------- 92% | Mutant 7% | Sprinter Dominant Class ---------------- Mutant | -10/Materials Mutant | -9/Materials Resources | -11 -10 -9 ----------- Run | Yrd Mat Mat Matter Collected 662 | 119 144 399 Remotely . | . . . Salvage Created 540 | . 197 343 Parts 27 | . 14 13 Haulers Intercepted . | . . . Recyclers Shooed 1 | . 1 . Parts Field Recycled . | . . . Retrieved Matter . | . . . Parts Self-Destructed . | . . . Prevented . | . . . Parts Restored . | . . . Kills | -11 -10 -9 ------- Run | Yrd Mat Mat Combat Hostiles Destroyed 15 | . 8 7 Guns 11 | . 8 3 Cannons 3 | . . 3 Classes Destroyed 6 | . 4 2 Worker 1 | . 1 . Builder 1 | . 1 . Recycler 1 | . . 1 Swarmer 7 | . 6 1 Grunt 6 | . 2 4 Sentry 2 | . . 2 Best Kill Streak 5 | . 5 3 Combat Bots Only 3 | . 3 3 Max Kills in Single Turn 1 | . 1 1 Gunslinging . | . . . Exploded . | . . . Melee . | . . . Uniques/NPCs Destroyed . | . . . Combat | -11 -10 -9 -------- Run | Yrd Mat Mat Hostile Shots Fired 210 | . 64 146 Missed 50 | . 17 33 Hits 160 | . 47 113 Projectile 160 | . 47 113 Critical Strikes 3 | . . 3 Damage Taken 1792 | . 419 1373 Core 448 | . 43 405 Absorbed by Shields . | . . . Core Remaining (%) 91 | 100 82 . Volleys Fired 70 | . 40 30 Largest 2 | . 1 2 Hottest 136 | . 20 136 Shots Fired 81 | . 40 41 Gun 56 | . 40 16 Cannon 25 | . . 25 Launcher . | . . . Special . | . . . Kinetic 40 | . 40 . Thermal 41 | . . 41 Explosive . | . . . Electromagnetic . | . . . Robot Hit Streak 8 | . 8 4 Robot Miss Streak 6 | . 6 2 Penetration Max . | . . . Secondary Targets . | . . . Shots Hit Robots 49 | . 20 29 Core Hits 24 | . 12 12 Critical Kills 1 | . . 1 Critical Parts Destroyed . | . . . Critical Strikes 1 | . . 1 Meltdown 1 | . . 1 Melee Attacks 18 | . . 18 Impact . | . . . Slashing 9 | . . 9 Piercing . | . . . Sneak Attacks . | . . . Combat Hostiles . | . . . Follow-up Attacks . | . . . Damage Inflicted 735 | . 271 464 Guns 401 | . 271 130 Cannons 328 | . . 328 Explosions . | . . . Melee . | . . . Ramming 6 | . . 6 Kinetic 271 | . 271 . Thermal 458 | . . 458 Explosive . | . . . Electromagnetic . | . . . Impact . | . . . Slashing . | . . . Piercing . | . . . Highest Corruption . | . . . Average Corruption . | . . . Corruption Purged . | . . . Corruption Blocked . | . . . Overload Shots . | . . . Overflow Damage 2 | . . 2 Projectiles 2 | . . 2 Explosions . | . . . Melee . | . . . Knockbacks . | . . . Impact . | . . . Kinetic . | . . . Secondary . | . . . Self-Inflicted Damage . | . . . Shots . | . . . Rammed . | . . . Targets Rammed 1 | . . 1 Kicked 1 | . . 1 Crushed . | . . . Highest Temperature 522 | . . 522 Average Temperature 146 | . . 146 Received Heat Transfer 582 | . 57 525 Effects 7 | . . 7 Interference 3 | . . 3 Short Circuit 1 | . . 1 Damage (major) 3 | . . 3 Siege Activations . | . . . Martial Activations . | . . . Shielding Activations . | . . . Robots Disrupted . | . . . Combat Hostiles . | . . . Robots Corrupted . | . . . Combat Hostiles . | . . . Parts Fried . | . . . Impact Corruptions . | . . . Robots Melted 1 | . . 1 Combat Hostiles 1 | . . 1 Parts Melted 2 | . . 2 Heat Transferred 892 | . . 892 Parts Sabotaged . | . . . Parts Stolen . | . . . Parts Stripped . | . . . Power Chain Reactions . | . . . Alert | -11 -10 -9 ------- Run | Yrd Mat Mat Maximum Alert Level . | . . . Low Security (%) 100 | 100 100 100 Level 1 . | . . . Level 2 . | . . . Level 3 . | . . . Level 4 . | . . . Level 5 . | . . . High Security . | . . . Max Security . | . . . Peak Influence 65 | . 65 59 Initial 7 | . . 7 Average 10 | . 11 10 Influence Increases 553 | . 211 342 Destroy 0b10 Robot/C 300 | . 160 140 Destroy 0b10 Robot/NC 15 | . 10 5 Destroy Leader 70 | . 30 40 Successful Hack 10 | . 10 . Destroy Structure 8 | . 1 7 Partial Spotted 75 | . . 75 Lose Combat Pursuer 75 | . . 75 Influence Decreases 504 | . 192 312 Entered New Map 12 | . . 12 Time Decay 351 | . 172 179 Lost Part 141 | . 20 121 Squads Dispatched 2 | . 1 1 Investigation . | . . . Extermination . | . . . Reinforcement 2 | . 1 1 Assault . | . . . Garrison . | . . . Intercept . | . . . Searches Triggered . | . . . Construction Impeded . | . . . Haulers Reinforced . | . . . Active Scanning Responses . | . . . Cargo Convoy Interrupts . | . . . Stealth | -11 -10 -9 --------- Run | Yrd Mat Mat Distress Signals 2 | . 2 . Communications Jammed . | . . . Distress Signals . | . . . Times Spotted 40 | . 19 21 Peak Tracking Total 6 | . 4 6 Tactical Retreats 6 | . 3 3 ECM-based Alert Blocks 5 | . 3 2 Traps | -11 -10 -9 ------- Run | Yrd Mat Mat Traps Triggered . | . . . Indirectly . | . . . Trap Hack Attempts . | . . . Triggered . | . . . Disarmed . | . . . Reprogrammed . | . . . Reused . | . . . Traps Extracted . | . . . Installed . | . . . Triggered . | . . . Machines | -11 -10 -9 ---------- Run | Yrd Mat Mat Machines Disabled . | . . . Max in Single Turn . | . . . Machines Repaired . | . . . Machines Dismantled . | . . . Machines Sabotaged . | . . . Overloaded Fab Kills . | . . . Hacking | -11 -10 -9 --------- Run | Yrd Mat Mat Machines Accessed 7 | . 7 . Terminals 5 | . 5 . Fabricators . | . . . Repair Stations . | . . . Recycling Units 2 | . 2 . Scanalyzers . | . . . Garrison Access . | . . . Total Hacks 24 | . 24 . Successful 13 | . 13 . Failed 11 | . 11 . Catastrophic . | . . . Database Lockouts . | . . . Manual . | . . . Terminals 18 | . 18 . Fabricators . | . . . Repair Stations . | . . . Recycling Units 6 | . 6 . Scanalyzers . | . . . Garrison Access . | . . . Terminal Hacks 10 | . 10 . Record 1 | . 1 . Prototype ID Bank 3 | . 3 . Emergency Access Points 1 | . 1 . Locate Traps 1 | . 1 . Maintenance Status 1 | . 1 . Hauler Manifests 2 | . 2 . Zone Layout 1 | . 1 . Fabricator Hacks . | . . . Repair Station Hacks . | . . . Recycling Unit Hacks 3 | . 3 . Report Inventory 1 | . 1 . Retrieve Matter 1 | . 1 . Retrieve Components 1 | . 1 . Scanalyzer . | . . . Garrison Access Hacks . | . . . Unauthorized Hacks . | . . . Terminals . | . . . Fabricators . | . . . Repair Stations . | . . . Recycling Units . | . . . Scanalyzers . | . . . Garrison Access . | . . . Data Cores Recovered . | . . . Used . | . . . Hacking Detections 7 | . 7 . Full Trace Events . | . . . Feedback Events . | . . . Feedback Blocked . | . . . Robot Schematics Acquired . | . . . Robots Built . | . . . Authchips . | . . . Time . | . . . Total Robot Build Rating . | . . . Part Schematics Acquired . | . . . Parts Built . | . . . Authchips . | . . . Time . | . . . Total Part Build Rating . | . . . Part Studies Acquired . | . . . Parts Repaired . | . . . Time . | . . . Parts Recycled . | . . . Recycled Matter . | . . . Retrieved Matter . | . . . Retrieved Components . | . . . Parts Scanalyzed . | . . . Part Schematics Acquired . | . . . Parts Damaged . | . . . Bothacking | -11 -10 -9 ------------ Run | Yrd Mat Mat Used RIF Installer . | . . . Robots Hacked 1 | . . 1 Non-combat 1 | . . 1 Combat . | . . . Robot Hacks Applied 1 | . . 1 check_alert 1 | . . 1 Relay Couplers Released . | . . . Fabnet Peak Effective % . | . . . Robots Rewired . | . . . Allies Hacked . | . . . Hacks Repelled . | . . . Allies | -11 -10 -9 -------- Run | Yrd Mat Mat Total Allies . | . . . Largest Group . | . . . Highest-Rated Group . | . . . Highest-Rated Ally . | . . . Total Orders . | . . . Ally Attacks . | . . . Total Damage . | . . . Kills . | . . . Allies Corrupted . | . . . Allies Melted . | . . . Intel | -11 -10 -9 ------- Run | Yrd Mat Mat Active Infowar (turns) 1386 | . 775 611 Terrain 495 | . . 495 ECM 891 | . 775 116 Robot Analysis Total . | . . . Derelict Logs Recovered . | . . . Drone Launches . | . . . Drone Recoveries . | . . . Exploration | -11 -10 -9 ------------- Run | Yrd Mat Mat Turns Passed 1775 | 50 864 861 Spaces Moved 938 | 40 439 459 Core 29 | 14 . 15 Treads . | . . . Legs 570 | 26 439 105 Wheels . | . . . Hover 76 | . . 76 Flight 263 | . . 263 Fastest Speed 31 | 50 120 31 Average Speed 150 | 95 171 136 Slowest Speed 950 | 120 400 950 Overloaded Moves . | . . . Propulsion Burnouts . | . . . Robots Hopped . | . . . Potential Cave-ins . | . . . Cave-ins Triggered . | . . . Exploration Rate (%) 34 | 3 71 28 Regions Visited 2 Branch Regions . Pre-discovered Areas . | . . . Known Exits Taken . | . . . Unknown Exits Taken 2 | 1 1 . Scrap Searched . | . . . Spaces Dug 7 | . . 7 Terrain Destroyed 7 | . . 7 Melee 7 | . . 7 Projectile . | . . . AOE . | . . . Terrain Rammed . | . . . Walls Destroyed . | . . . Machines Disabled . | . . . Actions | -11 -10 -9 --------- Run | Yrd Mat Mat Total 1204 | 51 515 638 Wait 61 | . 17 44 Move 936 | 39 438 459 Hop . | . . . Pick Up 48 | 7 16 25 Fast Attach 2 | 1 . 1 Attach 34 | 4 2 28 Detach 1 | . . 1 Swap 11 | . 1 10 Drop 22 | . 1 21 Fire 70 | . 40 30 Melee 18 | . . 18 Ram . | . . . Kick 1 | . . 1 Crush . | . . . Escape Stasis . | . . . Rewire . | . . . Trap . | . . . Miscellaneous . | . . . Route ------- -11/Scrapyard -10/Materials (discovered 4 exits: [*Mat x3] / [*Min]) -9/Materials (discovered 1 exit: [*Mat]) History --------- Turn | Location | Event 8 | -11/Scrapyard | Discovered new exit (range 16) 51 | -11/Scrapyard | Entered Materials 194 | -10/Materials | Discovered new exit (range 14) 313 | -10/Materials | Build established: Mutant 400 | -10/Materials | Discovered new exit (range 15) 497 | -10/Materials | Discovered new exit (range 16) 751 | -10/Materials | Derelicts attacked the area 863 | -10/Materials | Discovered new exit (range 12) 915 | -10/Materials | Entered another Materials area 915 | -9/Materials | Evolved 2 slots: Propulsion x2 1166 | -9/Materials | Core integrity fell below 50% 1209 | -9/Materials | Lost 13 parts (1p9n3w) 1491 | -9/Materials | Core integrity fell below 20% 1751 | -9/Materials | Discovered new exit (range 12) 1776 | -9/Materials | Destroyed by Y-45 Defender with Heavy Assault Rifle Last Messages --------------- 01523_ Acquired Aluminum Leg. 01532_ R-06 Scavenger collects Particle Gun. 01535_ Acquired 5 matter. 01536_ Dropped Broken Imp. Ion Engine. 01536_ R-06 Scavenger collects Broken Imp. Ion Engine. 01536_ R-06 Scavenger destroyed. 01544_ Acquired Lgt. Ion Engine. 01652_ Acquired 17 matter. 01660_ Kicked K-01 Serf. 01751_ EXIT=FOUND 01767_ Aluminum Leg destroyed. 01767_ Destroyed Flight Unit. 01770_ Adv. Beam Cannon destroyed. 01770_ Critical hit (Destroy). 01770_ Adv. Beam Cannon destroyed. 01773_ Aluminum Leg destroyed. 01776_ Destroyed Flight Unit. 01776_ S-10 Pest suffers critical hit (Meltdown). Map ----- +----------------------------------------------------+ | | | ?????????????????????????????????????????????##### | | ?????????????????????????????????????????????# | | ?????????????????????????????????????????????# | | ?????????????????????????????????????????????# """ | | ?????????????????????????????????????????????# """ | | ?????????????????????????????????????????????# """ | | ?????????????????????????????????????????????# | | ?????????????????????????????????????????????##### | | ?????????????????????????????????????????????????# | | ?????????????????????????????????????????????????# | | ??????????????????????????#####??????????????????# | | ??????????????????????????# #??????????#####???# | | ??????????????????????????# < #?????????? #???# | | ??????????????????????????# #?????????? ##### | | ??????????????????????????# +?????# """ # # | | ??????????????????????????# #???? # """ # # | | ??????????????????????????# #?????# # # | | ??????????????????????#???# #??? ?# """ # # | | ?????????????????########## #?????# """ # / | | ???????????????#?? T # #?????# """ # # | | ?????????????????? """ # #?#????? ??# # | | ?????????????????# """ # ##########+######+## | | ?????????????????# """ # | | ?????????????????# %+ | | ?????????????????# """ @# | | ?????????????????# """ [ # ###/####### ###### | | ?????????????????# """ # # ## #????? | | ??????????????? ?# Y # # ## #????? | | ?????????????????##### #### # ## +????? | | ?????????????????????##???# # """ ## # ???? | | ??????????????????????????# # """""## # ???? | | ????????????????? ????????# # """""## # ? ? | | ???????????????????????#??# # """""## #?#??? | | ????????????????? ???? ???# # """ ?# #????? | | ??????????????????????????# # ????# ##???? | | ??????????????????????????# ######????# ###### | | ??????????????????????????# #???#???#?# #?# | | ??????????????????????????# #?????#???? ??# | | ??????????????????????????? ???????????????## | | ?????????????????????????????????????????? ??## | | ??????????????????????????????????????????????# | | ??????????????????????????????????????????? ?## | | ?????????????????????????????????????????????# | | ?????????????????????????????????????????????## | | ??????????????????????????????????????????????# | | ?????????????????????????????????????/???? ??##### | | ?????????????????????????????????????????????????? | | ?????????????????????????????????????????? ??????? | | ???????????????????????????????????????????"???#?# | +----------------------------------------------------+ Best States ------------- Heat Dissipation 28 Energy Generation 14 Energy Capacity 265 Matter Stores 300 Matter Capacity 300 Sight Range 16 Terrain Scan Range 14 Terrain Scan Density 85 ECM Strength 1 Evasion (%) 63 Item Schematics ----------------- None Robot Schematics ------------------ None Fabricated ------------ Nothing Repaired ---------- Nothing Studied --------- None Alien Tech Used ----------------- None Achievements -------------- None Challenges ------------ None Game ------ Seed JunkAerolevInterrupter Manual? 0 Play Time 00:18:25 Cumulative 21.5 hours Start 2025.10.26 @ 08:56:02 End 2025.10.26 @ 09:11:13 Sessions 1 Manual Loads 0 Difficulty Rogue Special Mode None Game No. 68 Rogue 68 Adventurer 0 Explorer 0 Win Type - Total 0 Types 0/0/0/0/0/0/0/0/0/0 Lore% 9 Gallery% 21 Achievement% 18 Wizard Run 0 Options --------- Layout 1 ASCII 0 Keyboard 0 Movement Mouse Keybinds 0 Fullscreen 2 Font 32/SmallcapsGlow Map View 50x35 Zoom Use 0% Tactical HUD 1 Map Filters NONE Filters NONE Steam 1 RUN: 83995769-c653-4f3a-92a5-6e28651c01bd